bitfinex/quotes_ETHUSD_20220215
["timestamp","ask_amount","ask_price","bid_price","bid_amount"]
[1644915192372,41.06458452,3076.9,3076.8,329.75072835]
[1644915192671,41.06378452,3076.9,3076.8,329.75072835]
[1644915192870,41.06218452,3076.9,3076.8,329.75072835]
[1644915193071,41.06298452,3076.9,3076.8,329.75072835]
[1644915193272,41.06138452,3076.9,3076.8,329.75072835]
[1644915193475,41.06218452,3076.9,3076.8,329.75072835]
[1644915193671,41.06298452,3076.9,3076.8,329.75072835]
[1644915193871,41.06218452,3076.9,3076.8,329.75072835]
[1644915194073,41.06298452,3076.9,3076.8,329.75072835]
[1644915194272,40.93978452,3076.9,3076.8,329.75072835]
[1644915194674,41.06378452,3076.9,3076.8,329.75072835]
[1644915194875,8.81918544,3076.9,3076.8,329.75072835]
[1644915195072,8.81838544,3076.9,3076.8,329.75072835]
[1644915195272,31.07338452,3076.9,3076.8,329.75072835]
[1644915195473,31.06938452,3076.9,3076.8,329.75072835]
[1644915195674,31.07018452,3076.9,3076.8,329.75072835]
[1644915195874,31.06858452,3076.9,3076.8,329.75072835]
[1644915196120,31.07018452,3076.9,3076.8,329.75072835]
[1644915196621,31.07098452,3076.9,3076.8,329.75072835]
[1644915196824,31.07018452,3076.9,3076.8,329.75072835]
[1644915197021,31.06778452,3076.9,3076.8,329.75072835]
[1644915197223,30.40778452,3076.9,3076.8,329.75072835]
[1644915197622,31.40778452,3076.9,3076.8,329.75072835]
[1644915199122,29.29559352,3076.9,3076.8,329.75072835]
[1644915200378,30.29559352,3076.9,3076.8,329.75072835]
[1644915201575,30.41719352,3076.9,3076.8,329.75072835]
[1644915201775,30.29559352,3076.9,3076.8,329.75072835]
[1644915202379,30.41879352,3076.9,3076.8,329.75072835]
[1644915202580,30.41719352,3076.9,3076.8,329.75072835]
[1644915202778,30.41799352,3076.9,3076.8,329.75072835]
[1644915202979,30.29559352,3076.9,3076.8,329.75072835]
[1644915203179,30.41799352,3076.9,3076.8,329.75072835]
[1644915203378,30.41879352,3076.9,3076.8,329.75072835]
[1644915203630,30.29559352,3076.9,3076.8,329.75072835]
[1644915204031,30.41879352,3076.9,3076.8,329.75072835]
[1644915204434,30.42119352,3076.9,3076.8,329.75072835]
[1644915204633,30.42279352,3076.9,3076.8,329.75072835]
[1644915204833,30.42039352,3076.9,3076.8,329.75072835]
[1644915205033,30.41959352,3076.9,3076.8,329.75072835]
[1644915205235,30.42119352,3076.9,3076.8,329.75072835]
[1644915205434,30.42039352,3076.9,3076.8,329.75072835]
[1644915205635,31.61740189,3076.9,3076.8,329.75072835]
[1644915205853,31.61900189,3076.9,3076.8,329.75072835]
[1644915206034,31.62060189,3076.9,3076.8,329.75072835]
[1644915206233,31.61980189,3076.9,3076.8,329.75072835]
[1644915206433,31.62060189,3076.9,3076.8,329.75072835]
[1644915207234,31.62140189,3076.9,3076.8,329.75072835]
[1644915207471,31.62220189,3076.9,3076.8,329.75072835]
[1644915207676,55.60768331,3076.9,3076.8,329.75072835]
[1644915207877,55.61808331,3076.9,3076.8,324.87267835]
[1644915208072,55.61888331,3076.9,3076.8,319.99459835]
[1644915208272,55.62368331,3076.9,3076.8,319.99459835]
[1644915208877,55.62048331,3076.9,3076.8,318.51934631]
[1644915209075,55.61888331,3076.9,3076.8,318.51934631]
[1644915209275,55.61568331,3076.9,3076.8,318.51934631]
[1644915209477,55.61328331,3076.9,3076.8,318.51934631]
[1644915209675,55.60848331,3076.9,3076.8,318.51934631]
[1644915209875,55.61408331,3076.9,3076.8,318.51934631]
[1644915210078,55.61328331,3076.9,3076.8,318.51934631]
[1644915210277,55.61408331,3076.9,3076.8,318.51934631]
[1644915210478,55.61328331,3076.9,3076.8,318.51934631]
[1644915210878,55.61408331,3076.9,3076.8,318.51934631]
[1644915211122,55.61328331,3076.9,3076.8,318.51934631]
[1644915211920,55.61248331,3076.9,3076.8,318.51934631]
[1644915212321,55.61488331,3076.9,3076.8,318.51934631]
[1644915212522,55.61568331,3076.9,3076.8,318.51934631]
[1644915212721,55.94273331,3076.9,3076.8,318.51934631]
[1644915212923,57.35018647,3076.9,3076.8,318.51934631]
[1644915213126,57.34938647,3076.9,3076.8,318.51934631]
[1644915213324,57.36698647,3076.9,3076.8,318.51934631]
[1644915213524,57.35898647,3076.9,3076.8,318.51934631]
[1644915213724,57.35258647,3076.9,3076.8,318.51934631]
[1644915213924,57.35178647,3076.9,3076.8,318.51934631]
[1644915214124,57.35418647,3076.9,3076.8,318.51934631]
[1644915214324,57.35498647,3076.9,3076.8,318.51934631]
[1644915214723,57.35418647,3076.9,3076.8,318.51934631]
[1644915214970,57.34858647,3076.9,3076.8,318.51934631]
[1644915215171,57.35338647,3076.9,3076.8,318.51934631]
[1644915215374,57.35258647,3076.9,3076.8,318.51934631]
[1644915215572,57.35578647,3076.9,3076.8,318.51934631]
[1644915215776,57.35738647,3076.9,3076.8,318.51934631]
[1644915215973,57.35658647,3076.9,3076.8,318.51934631]
[1644915216174,57.35578647,3076.9,3076.8,318.51934631]
[1644915216672,57.34858647,3076.9,3076.8,318.4447682]
[1644915216873,57.34618647,3076.9,3076.8,318.4447682]
[1644915217072,57.34858647,3076.9,3076.8,318.4447682]
[1644915217274,57.34698647,3076.9,3076.8,318.4447682]
[1644915217474,57.35098647,3076.9,3076.8,318.4447682]
[1644915217673,57.34938647,3076.9,3076.8,318.4447682]
[1644915217874,57.35018647,3076.9,3076.8,318.4447682]
[1644915218277,57.96937999,3076.9,3076.8,318.4447682]
[1644915218476,57.96617999,3076.9,3076.8,318.4447682]
[1644915218718,57.97017999,3076.9,3076.8,318.4447682]
[1644915218922,57.35658647,3076.9,3076.8,318.4447682]
[1644915219122,57.35498647,3076.9,3076.8,315.4447682]
[1644915219320,57.35578647,3076.9,3076.8,315.4447682]
[1644915219520,57.35338647,3076.9,3076.8,315.4447682]
[1644915219718,57.35338647,3076.9,3076.8,315.3388913]
[1644915219924,33.51017005,3076.9,3076.8,315.3388913]
[1644915220121,33.50937005,3076.9,3076.8,315.3388913]
[1644915220324,33.50537005,3076.9,3076.8,315.3388913]
[1644915220519,34.1255821,3076.9,3076.8,315.3388913]
[1644915220922,34.1295821,3076.9,3076.8,315.3388913]
[1644915221119,34.1327821,3076.9,3076.8,315.3388913]
[1644915221324,34.1303821,3076.9,3076.8,315.3388913]
[1644915221518,34.1295821,3076.9,3076.8,315.3388913]
[1644915221719,33.51177005,3076.9,3076.8,315.3388913]
[1644915221919,33.50697005,3076.9,3076.8,315.3388913]
[1644915222120,9.92092097,3076.9,3076.8,315.3388913]
[1644915222383,2.36724174,3077.0,3076.8,315.3388913]
[1644915222589,0.468,3076.9,3076.8,315.3388913]
[1644915222782,0.81266,3077.0,3076.8,315.3388913]
[1644915222984,0.73748106,3077.0,3076.8,315.3388913]
[1644915223184,0.130261,3077.1,3076.8,315.3388913]
[1644915223985,3.3,3077.2,3077.0,6.15]
[1644915224183,3.3,3077.2,3077.0,6.15677617]
[1644915224383,1.3207248,3077.2,3077.0,6.15677617]
[1644915226624,1.3207248,3077.2,3077.0,0.00677617]
[1644915226827,0.468,3077.1,3077.0,0.00677617]
[1644915227024,1.5984,3077.1,3077.0,0.00677617]
[1644915227224,2.5992,3077.1,3076.9,0.00982037]
[1644915227426,0.62031066,3077.0,3076.9,0.00982037]
[1644915227625,2.02838066,3077.0,3076.9,0.00982037]
[1644915227825,3.20118066,3077.0,3076.9,0.00982037]
[1644915228027,2.58087,3077.0,3076.9,0.00982037]
[1644915228226,3.28087,3077.0,3076.8,315.3388913]
[1644915228426,2.28087,3077.0,3076.8,315.34871208]
[1644915228628,1.0,3076.9,3076.8,315.34871208]
[1644915228829,0.468,3076.9,3076.8,315.34871208]
[1644915229028,1.0,3077.1,3076.8,313.87364417]
[1644915229226,1.3207248,3077.2,3076.8,313.87364417]
[1644915229426,1.3207248,3077.2,3076.8,313.86382339]
[1644915229628,1.3207248,3077.2,3076.8,313.87364417]
[1644915230079,2.9458713,3077.2,3076.8,313.87364417]
[1644915230284,2.1333113,3077.2,3076.8,313.87364417]
[1644915230483,1.3207248,3077.2,3076.9,3.25502082]
[1644915230679,1.3207248,3077.2,3077.0,0.00677617]
[1644915231482,2.1332826,3077.2,3077.0,0.00677617]
[1644915231878,2.1332826,3077.2,3077.0,1.13150181]
[1644915232080,2.1332826,3077.2,3077.1,3.28505492]
[1644915232081,1.3207248,3077.2,3077.1,3.28505492]
[1644915232281,1.3207248,3077.2,3077.0,1.13150181]
[1644915232480,1.3207248,3077.2,3077.0,1.94399181]
[1644915232683,1.3207248,3077.2,3077.0,1.13150181]
[1644915232881,1.3207248,3077.2,3077.0,0.00677617]
[1644915233084,0.468,3077.1,3077.0,0.00677617]
[1644915233282,1.08831066,3077.1,3076.9,0.00982037]
[1644915233481,0.81285,3077.0,3076.9,0.00982037]
[1644915233732,2.28085,3077.0,3076.9,0.00982037]
[1644915233932,2.40245,3077.0,3076.9,0.00982037]
[1644915234136,1.28085,3077.0,3076.8,313.86382339]
[1644915234431,1.28085,3077.0,3076.8,313.87364417]
[1644915234832,2.28085,3077.0,3076.8,313.87364417]
[1644915235234,2.58085,3077.0,3076.8,313.87364417]
[1644915235434,2.58085,3077.0,3076.8,313.86382339]
[1644915235435,2.70485,3077.0,3076.8,313.86382339]
[1644915235734,6.70652639,3077.0,3076.8,313.86382339]
[1644915235936,0.1296,3076.9,3076.8,313.86382339]
[1644915236133,4.9316347,3076.9,3076.8,313.86382339]
[1644915236335,2.592,3076.9,3076.8,313.86382339]
[1644915236535,2.5904,3076.9,3076.8,313.86382339]
[1644915236738,2.468,3076.9,3076.8,313.86382339]
[1644915236936,1.5904,3076.9,3076.8,313.86382339]
[1644915237137,2.468,3076.9,3076.8,313.86382339]
[1644915237773,1.468,3076.9,3076.8,313.86382339]
[1644915237975,2.468,3076.9,3076.8,313.86382339]
[1644915238373,2.5896,3076.9,3076.8,313.86382339]
[1644915238572,2.5912,3076.9,3076.8,313.86382339]
[1644915238773,2.468,3076.9,3076.8,313.86382339]
[1644915238974,2.468,3076.9,3076.8,313.85704722]
[1644915239376,2.5976,3076.9,3076.8,313.85704722]
[1644915239774,2.5968,3076.9,3076.8,313.85704722]
[1644915239974,2.596,3076.9,3076.8,313.85704722]
[1644915240174,2.5904,3076.9,3076.8,313.85704722]
[1644915240378,2.468,3076.9,3076.8,313.85704722]
[1644915242427,3.63553638,3076.9,3076.8,313.85704722]
[1644915245684,3.39744704,3076.9,3076.8,313.85704722]
[1644915245885,28.36932846,3076.9,3076.8,313.85704722]
[1644915246085,29.9851791,3076.9,3076.8,313.85704722]
[1644915246285,29.9875791,3076.9,3076.8,313.37500782]
[1644915246484,29.9843791,3076.9,3076.8,313.37500782]
[1644915246689,29.16047096,3076.9,3076.8,313.37500782]
[1644915246886,29.15887096,3076.9,3076.8,313.37500782]
[1644915247087,29.15727096,3076.9,3076.8,313.37500782]
[1644915247291,29.15487096,3076.9,3076.8,313.37500782]
[1644915247490,29.15567096,3076.9,3076.8,313.37500782]
[1644915248088,29.15647096,3076.9,3076.8,313.37500782]
[1644915248622,29.15807096,3076.9,3076.8,313.37500782]
[1644915248827,29.15407096,3076.9,3076.8,313.37500782]
[1644915249023,29.15407096,3076.9,3076.8,311.89988028]
[1644915249024,29.15327096,3076.9,3076.8,311.89988028]
[1644915249427,29.15567096,3076.9,3076.8,311.89988028]
[1644915249625,29.15407096,3076.9,3076.8,311.89988028]
[1644915249829,29.15327096,3076.9,3076.8,311.89988028]
[1644915250327,29.15087096,3076.9,3076.8,311.89988028]
[1644915250527,29.77020623,3076.9,3076.8,311.89988028]
[1644915250726,29.77420743,3076.9,3076.8,311.89988028]
[1644915250926,29.15327096,3076.9,3076.8,311.89988028]
[1644915251129,29.15247096,3076.9,3076.8,311.89988028]
[1644915251330,29.7710372,3076.9,3076.8,311.89988028]
[1644915251526,29.7686372,3076.9,3076.8,311.89988028]
[1644915251728,29.7702372,3076.9,3076.8,311.89988028]
[1644915251929,29.7694372,3076.9,3076.8,311.89988028]
[1644915252128,29.7654372,3076.9,3076.8,311.89988028]
[1644915252373,29.7670372,3076.9,3076.8,311.89988028]
[1644915252572,29.7662372,3076.9,3076.8,311.89988028]
[1644915252776,29.7614372,3076.9,3076.8,311.89988028]
[1644915252975,29.7566372,3076.9,3076.8,311.89988028]
[1644915253174,29.7582372,3076.9,3076.8,311.89988028]
[1644915253481,29.7598372,3076.9,3076.8,311.89988028]
[1644915253874,29.7622372,3076.9,3076.8,311.89988028]
[1644915254075,29.14847096,3076.9,3076.8,311.89988028]
[1644915254274,29.15087096,3076.9,3076.8,311.89988028]
[1644915254477,29.14687096,3076.9,3076.8,311.89988028]
[1644915254678,29.14367096,3076.9,3076.8,311.89988028]
[1644915254979,29.14447096,3076.9,3076.8,311.89988028]
[1644915255179,29.76295977,3076.9,3076.8,311.89988028]
[1644915255376,29.76695908,3076.9,3076.8,311.89988028]
[1644915255576,29.76775908,3076.9,3076.8,311.89988028]
[1644915255779,29.76375908,3076.9,3076.8,311.89988028]
[1644915255976,29.76695908,3076.9,3076.8,311.89988028]
[1644915256233,29.76775908,3076.9,3076.8,311.89988028]
[1644915256431,29.14847096,3076.9,3076.8,311.89988028]
[1644915256631,29.14607096,3076.9,3076.8,311.89988028]
[1644915256832,29.14287096,3076.9,3076.8,311.89988028]
[1644915257034,29.14527096,3076.9,3076.8,311.89988028]
[1644915257232,29.14767096,3076.9,3076.8,311.89988028]
[1644915257434,29.14687096,3076.9,3076.8,311.89988028]
[1644915257833,29.76367835,3076.9,3076.8,311.89988028]
[1644915258235,29.76287835,3076.9,3076.8,311.89988028]
[1644915258439,29.76447835,3076.9,3076.8,311.89988028]
[1644915258636,29.76687835,3076.9,3076.8,311.89988028]
[1644915258842,29.76527835,3076.9,3076.8,311.89988028]
[1644915259037,29.76367835,3076.9,3076.8,311.89988028]
[1644915259237,29.76207835,3076.9,3076.8,311.89988028]
[1644915259439,29.14127096,3076.9,3076.8,311.89988028]
[1644915259638,29.61930482,3076.9,3076.8,311.89988028]
[1644915259876,30.10892238,3076.9,3076.8,311.89988028]
[1644915261173,29.48890482,3076.9,3076.8,311.89988028]
[1644915261575,30.10888303,3076.9,3076.8,311.89988028]
[1644915261774,30.23048303,3076.9,3076.8,311.89988028]
[1644915261973,30.23128303,3076.9,3076.8,311.89988028]
[1644915262174,30.23208303,3076.9,3076.8,311.89988028]
[1644915262373,30.23448303,3076.9,3076.8,311.89988028]
[1644915262574,29.61450482,3076.9,3076.8,311.89988028]
[1644915262776,29.61610482,3076.9,3076.8,311.89988028]
[1644915262975,29.61690482,3076.9,3076.8,311.89988028]
[1644915263826,29.62010482,3076.9,3076.8,311.89988028]
[1644915264022,29.62250482,3076.9,3076.8,311.89988028]
[1644915264221,29.62570482,3076.9,3076.8,311.89988028]
[1644915264422,30.44801296,3076.9,3076.8,311.89988028]
[1644915264924,30.44721296,3076.9,3076.8,311.89988028]
[1644915265324,30.44641296,3076.9,3076.8,311.89988028]
[1644915265723,30.44641296,3076.9,3076.8,307.02189358]
[1644915265924,29.62650482,3076.9,3076.8,307.02189358]
[1644915266125,29.62570482,3076.9,3076.8,307.02189358]
[1644915266326,29.62490482,3076.9,3076.8,307.02189358]
[1644915266625,30.24410814,3076.9,3076.8,307.02189358]
[1644915267024,30.23450814,3076.9,3076.8,307.02189358]
[1644915267226,30.23290814,3076.9,3076.8,307.02189358]
[1644915267682,30.23450814,3076.9,3076.8,307.02189358]
[1644915267889,30.23370814,3076.9,3076.8,307.02189358]
[1644915268083,30.23610814,3076.9,3076.8,307.02189358]
[1644915268282,30.23690814,3076.9,3076.8,307.02189358]
[1644915268684,29.61610482,3076.9,3076.8,307.02189358]
[1644915268985,1.43285332,3077.0,3076.8,306.10058461]
[1644915269184,0.8128472,3077.1,3076.9,3.5]
[1644915269185,0.01065385,3077.1,3076.9,3.5]
[1644915269385,1.3207248,3077.2,3076.8,307.41018461]
[1644915269684,1.3207248,3077.2,3077.0,0.3]
[1644915270085,1.3207248,3077.2,3077.0,1.11259]
[1644915270490,1.3207248,3077.2,3077.0,0.81259]
[1644915270687,2.1333448,3077.2,3077.0,1.11259]
[1644915270886,1.3207248,3077.2,3077.0,1.11259]
[1644915272036,2.1333448,3077.2,3077.0,1.11259]
[1644915272639,2.1333448,3077.2,3077.0,0.3]
[1644915273041,2.1333448,3077.2,3076.9,0.00913278]
[1644915273238,2.1333448,3077.2,3077.0,0.3]
[1644915273443,0.81269,3077.1,3076.9,0.00913278]
[1644915273639,0.8127,3077.0,3076.9,0.00913278]
[1644915273838,0.8127,3077.0,3076.8,305.84688461]
[1644915274039,0.8127,3077.0,3076.8,305.55605738]
[1644915274542,0.8127,3077.0,3076.8,305.85605738]
[1644915274978,0.8127,3077.0,3076.8,305.84688461]
[1644915275778,0.8127,3077.0,3076.8,305.54688461]
[1644915275978,0.8127,3077.0,3076.8,305.84688461]
[1644915280628,0.8127,3077.0,3076.8,305.79688461]
[1644915281830,0.8127,3077.0,3076.8,305.49688461]
[1644915282794,0.8127,3077.0,3076.8,305.79688461]
[1644915284203,0.8127,3077.0,3076.8,305.49688461]
[1644915284204,3.46796724,3076.9,3076.8,305.49688461]
[1644915284394,3.93596724,3076.9,3076.8,305.49688461]
[1644915284594,5.75827538,3076.9,3076.8,305.49688461]
[1644915284794,6.88307538,3076.9,3076.8,305.49688461]
[1644915285194,6.88627538,3076.9,3076.8,305.49688461]
[1644915285393,6.89027538,3076.9,3076.8,305.49688461]
[1644915285595,6.88947538,3076.9,3076.8,305.49688461]
[1644915285797,6.89107538,3076.9,3076.8,305.49688461]
[1644915285998,6.89187538,3076.9,3076.8,305.49688461]
[1644915286228,2.6016,3076.9,3076.8,305.49688461]
[1644915286428,2.5992,3076.9,3076.8,305.49688461]
[1644915286627,2.6,3076.9,3076.8,305.49688461]
[1644915286829,3.42310814,3076.9,3076.8,305.49688461]
[1644915287129,3.42150814,3076.9,3076.8,305.49688461]
[1644915287330,2.6,3076.9,3076.8,305.49688461]
[1644915287529,5.85571282,3076.9,3076.8,305.49688461]
[1644915287829,26.80588496,3076.9,3076.8,305.49688461]
[1644915288128,28.25769644,3076.9,3076.8,305.49688461]
[1644915288331,28.25849644,3076.9,3076.8,305.49688461]
[1644915288828,29.49649022,3076.9,3076.8,305.49688461]
[1644915289031,29.49649022,3076.9,3076.8,304.02169153]
[1644915289228,29.49569022,3076.9,3076.8,304.02169153]
[1644915290076,29.49489022,3076.9,3076.8,304.02169153]
[1644915290280,29.49489022,3076.9,3076.8,303.8784913]
[1644915290476,29.49569022,3076.9,3076.8,303.8784913]
[1644915290677,29.49489022,3076.9,3076.8,303.8784913]
[1644915290877,26.2367774,3076.9,3076.8,303.8784913]
[1644915291078,26.2359774,3076.9,3076.8,303.8784913]
[1644915291280,26.2343774,3076.9,3076.8,303.8784913]
[1644915291778,26.2359774,3076.9,3076.8,303.8784913]
[1644915292380,26.2351774,3076.9,3076.8,303.8784913]
[1644915292577,26.2359774,3076.9,3076.8,303.8784913]
[1644915292779,26.2343774,3076.9,3076.8,303.8784913]
[1644915292977,26.2367774,3076.9,3076.8,303.8784913]
[1644915293177,26.2351774,3076.9,3076.8,303.8784913]
[1644915293379,24.2327774,3076.9,3076.8,303.8784913]
[1644915293638,3.77772786,3076.9,3076.8,303.8784913]
[1644915293838,2.32591638,3076.9,3076.8,303.8784913]
[1644915294035,1.70599378,3076.9,3076.8,303.8784913]
[1644915294232,2.82839378,3076.9,3076.8,303.8784913]
[1644915294432,2.70599378,3076.9,3076.8,303.8784913]
[1644915295234,3.70599378,3076.9,3076.8,303.8784913]
[1644915296236,27.18086081,3076.9,3076.8,300.74036176]
[1644915296446,28.76547229,3076.9,3076.8,300.74036176]
[1644915296634,28.76787229,3076.9,3076.8,300.70566587]
[1644915296834,28.76867229,3076.9,3076.8,300.70566587]
[1644915297042,28.76627229,3076.9,3076.8,300.70566587]
[1644915297236,48.88773629,3076.9,3076.8,300.70566587]
[1644915297877,48.88693629,3076.9,3076.8,300.70566587]
[1644915298078,48.88613629,3076.9,3076.8,300.70566587]
[1644915298277,49.05004499,3076.9,3076.8,300.70566587]
[1644915298882,49.05244499,3076.9,3076.8,300.70566587]
[1644915299081,49.05164499,3076.9,3076.8,300.70566587]
[1644915299379,47.81817704,3076.9,3076.8,300.70566587]
[1644915299782,47.82057704,3076.9,3076.8,300.70566587]
[1644915299979,47.82137704,3076.9,3076.8,300.70566587]
[1644915300182,47.81897704,3076.9,3076.8,300.70566587]
[1644915300382,47.81817704,3076.9,3076.8,300.70566587]
[1644915300589,49.04924499,3076.9,3076.8,300.70566587]
[1644915300782,49.05084499,3076.9,3076.8,300.70566587]
[1644915300983,49.04844499,3076.9,3076.8,300.70566587]
[1644915301222,49.04924499,3076.9,3076.8,300.2914167]
[1644915301425,49.05004499,3076.9,3076.8,300.2914167]
[1644915301626,47.81897704,3076.9,3076.8,300.2914167]
[1644915302025,49.05484097,3076.9,3076.8,298.07829462]
[1644915302224,49.38029097,3076.9,3076.8,298.07829462]
[1644915302424,49.38109097,3076.9,3076.8,298.07829462]
[1644915303024,49.38029097,3076.9,3076.8,298.07829462]
[1644915303225,47.81017704,3076.9,3076.8,298.07829462]
[1644915303424,26.40240434,3076.9,3076.8,298.07829462]
[1644915303829,4.15780526,3076.9,3076.8,298.07829462]
[1644915304026,2.70599378,3076.9,3076.8,298.07829462]
[1644915304426,2.60599378,3076.9,3076.8,298.07829462]
[1644915306481,3.60599378,3076.9,3076.8,293.20032072]
[1644915306680,25.85059286,3076.9,3076.8,293.20032072]
[1644915306884,27.30240434,3076.9,3076.8,293.20032072]
[1644915307687,4.05780526,3076.9,3076.8,293.20032072]
[1644915307882,2.60599378,3076.9,3076.8,293.20032072]
[1644915308084,1.60599378,3076.9,3076.8,293.20032072]
[1644915308282,2.22503861,3076.9,3076.8,293.20032072]
[1644915308483,1.60599378,3076.9,3076.8,293.20032072]
[1644915309131,1.23799378,3076.9,3076.8,291.7252288]
[1644915313180,1.8570098,3076.9,3076.8,291.7252288]
[1644915313580,2.8570098,3076.9,3076.8,291.7252288]
[1644915313780,3.3250098,3076.9,3076.8,291.7252288]
[1644915314581,2.23799378,3076.9,3076.8,291.7252288]
[1644915314784,1.23799378,3076.9,3076.8,291.7252288]
[1644915315182,1.85704923,3076.9,3076.8,291.7252288]
[1644915316332,1.23799378,3076.9,3076.8,291.7252288]
[1644915317337,0.99044584,3076.9,3076.8,291.7252288]
[1644915318536,0.8127,3077.0,3076.9,6.65]
[1644915318738,1.0,3077.4,3077.1,6.65]
[1644915318935,0.61917801,3077.3,3077.1,6.65]
[1644915319135,0.61917801,3077.5,3077.1,6.65]
[1644915319435,1.63805443,3077.8,3077.1,6.65]
[1644915319436,0.61917801,3077.6,3077.1,6.65]
[1644915319886,0.61917801,3077.6,3077.3,1.7762706]
[1644915320182,0.82560443,3077.9,3077.4,6.65]
[1644915320383,0.00455496,3078.0,3077.4,6.65]
[1644915320788,1.82558661,3078.5,3077.6,5.0]
[1644915320987,0.82821527,3078.7,3078.1,0.81206]
[1644915321288,0.01509403,3078.3,3078.1,0.81206]
[1644915321488,0.01509403,3078.3,3078.1,1.11206]
[1644915321888,0.01509403,3078.3,3078.1,0.81203]
[1644915322084,0.00262866,3079.0,3078.1,2.4361583]
[1644915322285,0.82558661,3079.1,3078.9,1.08969247]
[1644915322488,0.00262866,3079.0,3078.2,0.3]
[1644915322886,0.00262866,3079.0,3078.1,0.81208]
[1644915322887,0.00262866,3079.0,3078.3,1.62415]
[1644915323084,0.00262866,3079.0,3078.3,2.33445]
[1644915323285,0.00262866,3079.0,3078.4,0.3]
[1644915323634,0.00262866,3079.0,3078.4,0.89968756]
[1644915323635,0.00122013,3078.8,3078.4,0.89968756]
[1644915324034,0.00122013,3078.8,3078.4,1.71184756]
[1644915324433,0.00262866,3078.9,3078.4,1.71184756]
[1644915324633,0.00405571,3078.8,3078.4,1.71184756]
[1644915325136,0.00405571,3078.8,3078.4,0.81216]
[1644915325335,0.00405571,3078.8,3078.3,0.3]
[1644915325834,0.00405571,3078.7,3078.2,0.3]
[1644915326034,0.00405571,3078.7,3078.6,0.84901129]
[1644915326437,0.00405571,3078.7,3078.5,0.3]
[1644915326636,0.00405571,3078.7,3077.9,3.1086]
[1644915326835,3.6433263,3078.8,3077.9,3.92094]
[1644915327047,0.00262866,3078.7,3077.9,3.92094]
[1644915327513,1.81489866,3078.7,3077.9,1.7488441]
[1644915327712,0.81489866,3078.7,3077.9,1.7488441]
[1644915328307,0.00369414,3078.5,3077.9,1.7488441]
[1644915329210,0.00369414,3078.5,3077.9,2.0488441]
[1644915329211,0.00262866,3078.5,3077.9,2.0488441]
[1644915329508,0.00369403,3078.4,3077.9,2.0488441]
[1644915329909,0.00632269,3078.4,3077.9,2.0488441]
[1644915330319,0.00632269,3078.4,3078.0,5.0]
[1644915330511,0.00262866,3078.6,3078.0,0.81215]
[1644915330711,4.11216,3079.0,3078.1,5.3]
[1644915330712,0.00377492,3078.4,3078.1,5.3]
[1644915330913,0.00104741,3078.4,3078.3,5.0]
[1644915331132,0.00104741,3078.4,3078.2,1.0]
[1644915331334,0.00104741,3078.4,3078.1,7.92433]
[1644915331535,0.00104741,3078.4,3078.2,0.81217]
[1644915331833,0.00262866,3078.9,3078.2,1.81217]
[1644915333035,0.00262866,3078.9,3078.2,0.81217]
[1644915333036,0.81482866,3078.9,3078.2,0.81217]
[1644915333635,0.81482866,3078.9,3078.1,1.92433]
[1644915333835,1.1122555,3078.8,3078.1,1.92433]
[1644915334036,0.81231,3078.6,3078.1,1.92433]
[1644915334236,0.00262866,3078.5,3078.1,0.3]
[1644915334435,0.00262866,3078.5,3078.1,1.11229]
[1644915335084,0.00459469,3078.7,3078.1,1.11229]
[1644915335281,1.11486866,3078.8,3078.1,1.11229]
[1644915335485,0.00459454,3078.6,3078.1,6.92436]
[1644915335682,0.00459454,3078.6,3078.1,7.92436]
[1644915335881,0.00459454,3078.6,3078.1,7.11229]
[1644915336582,0.00262866,3078.8,3078.1,2.11229]
[1644915336782,0.00459462,3078.6,3078.1,2.11229]
[1644915337683,0.00262866,3078.8,3078.1,2.11229]
[1644915338086,0.00459462,3078.6,3078.1,2.11229]
[1644915338839,0.00262866,3078.8,3078.1,2.11229]
[1644915339240,0.00459462,3078.6,3078.1,2.11229]
[1644915340242,0.30262866,3078.8,3078.1,2.11229]
[1644915340442,0.00459462,3078.6,3078.1,2.11229]
[1644915341240,0.00459462,3078.6,3078.1,1.11229]
[1644915341461,0.00262866,3078.8,3078.1,1.11229]
[1644915341642,0.81225,3078.7,3077.6,8.58946]
[1644915341841,0.81225,3078.7,3077.6,8.59862156]
[1644915341842,1.62487,3078.5,3077.6,8.59862156]
[1644915342043,0.47062866,3078.4,3077.6,8.59862156]
[1644915342244,0.47062866,3078.4,3077.6,1.63392156]
[1644915342494,0.77062866,3078.4,3077.6,1.62476]
[1644915342690,3.38683666,3078.3,3077.4,1.0552175]
[1644915342891,0.81506866,3078.2,3077.8,0.81244]
[1644915343090,1.62487,3078.2,3077.8,0.81244]
[1644915343292,0.00262866,3078.1,3077.9,0.3]
[1644915343489,1.92749156,3078.2,3077.9,0.3]
[1644915343695,1.92749156,3078.2,3077.4,1.0552175]
[1644915343888,1.92749156,3078.2,3077.6,0.00885658]
[1644915343889,0.30262866,3078.2,3077.6,0.00885658]
[1644915344089,2.09284,3078.1,3077.6,0.00885658]
[1644915344289,1.18503598,3078.0,3077.6,0.00885658]
[1644915344493,1.6251179,3077.9,3077.6,0.00885658]
[1644915344691,3.2502379,3077.9,3077.6,0.00885658]
[1644915344889,3.2502379,3077.9,3077.3,1.11244]
[1644915344890,3.24655164,3077.9,3077.3,1.11244]
[1644915345090,0.81519866,3077.8,3077.3,1.11244]
[1644915345291,1.11519866,3077.8,3077.6,0.00885649]
[1644915345692,1.92775866,3077.8,3077.6,0.00885649]
[1644915346133,1.6251551,3077.7,3077.3,1.11244]
[1644915346333,4.0629451,3077.7,3077.5,0.00885659]
[1644915346537,5.35506618,3077.6,3077.5,0.00885659]
[1644915346734,6.82391092,3077.6,3077.5,0.00885659]
[1644915346934,3.46647604,3077.6,3077.5,0.00885659]
[1644915347334,0.8127182,3077.4,3077.0,0.3]
[1644915347736,0.3,3077.3,3077.0,0.3]
[1644915348735,1.1126239,3077.3,3077.0,1.12158306]
[1644915348936,0.81264,3077.2,3077.0,1.12158306]
[1644915349136,0.81264,3077.2,3077.0,0.30893306]
[1644915349137,1.11264,3077.2,3077.0,0.30893306]
[1644915349738,1.9252923,3077.2,3077.0,0.3]
[1644915349987,1.9252923,3077.2,3076.9,0.00893318]
[1644915350190,0.81269,3077.1,3076.9,0.00893318]
[1644915350389,1.62536,3077.1,3076.9,0.00893318]
[1644915350993,1.62536,3077.1,3076.8,211.8331]
[1644915351198,1.62536,3077.1,3076.9,0.98909405]
[1644915351391,1.62536,3077.1,3076.8,211.83038172]
[1644915351792,0.81269,3077.1,3076.8,211.83038172]
[1644915351994,0.81257,3077.3,3076.8,211.83038172]
[1644915352192,0.81257,3077.3,3076.8,211.82144801]
[1644915352393,0.81257,3077.3,3076.8,211.83038185]
[1644915353194,0.81257,3077.3,3077.0,1.01295483]
[1644915353392,1.62518,3077.3,3077.0,1.01295483]
[1644915353634,1.62518,3077.3,3076.9,0.00893359]